bitfinex/quotes_ETHUSD_20260130
["timestamp","ask_amount","ask_price","bid_price","bid_amount"]
[1769791318810,0.01099464,2740.9,2738.8,7.38754937]
[1769791318995,0.01099464,2741.1,2738.8,7.38754937]
[1769791319199,0.77599464,2741.1,2738.8,7.38754937]
[1769791319586,0.01099464,2741.1,2738.8,7.38754937]
[1769791319918,0.01099464,2741.0,2739.0,7.38754937]
[1769791320213,0.765,2741.1,2739.2,7.38754937]
[1769791320878,0.765,2741.1,2739.3,8.30019128]
[1769791322207,0.01099464,2740.6,2739.3,7.38754937]
[1769791322505,0.765,2741.1,2739.3,7.38754937]
[1769791322810,0.765,2741.1,2739.4,0.9126086]
[1769791323012,0.002,2741.3,2739.5,8.27652544]
[1769791323508,0.01099464,2741.2,2739.5,8.27652544]
[1769791323878,0.01099464,2741.0,2739.5,8.27652544]
[1769791324308,0.01099464,2740.8,2739.5,0.88897607]
[1769791324478,0.01099464,2740.6,2739.1,0.765]
[1769791324680,0.01299464,2741.3,2739.3,8.30017707]
[1769791324902,0.01099464,2741.1,2739.3,8.30017707]
[1769791325078,0.01099464,2740.9,2739.3,7.38754937]
[1769791325279,0.01099464,2740.9,2739.1,8.15254937]
[1769791325611,0.01099464,2740.5,2739.2,0.81525494]
[1769791325909,0.01099464,2740.7,2739.2,8.20280431]
[1769791326335,0.01099464,2741.1,2739.3,8.2591461]
[1769791326636,0.01099464,2740.9,2739.3,8.2591461]
[1769791327402,0.01099464,2740.7,2739.3,7.34651879]
[1769791327602,0.01099464,2740.7,2739.4,0.79247607]
[1769791327936,0.01099464,2740.5,2739.4,0.79247607]
[1769791328139,0.01099464,2740.7,2739.4,0.79247607]
[1769791328507,0.01099464,2740.5,2739.4,0.79247607]
[1769791328929,0.002,2740.5,2739.4,0.79247607]
[1769791330334,0.002,2740.5,2739.5,0.81389949]
[1769791332224,0.002,2740.5,2739.6,3.87]
[1769791332734,0.01099464,2740.4,2739.6,3.87]
[1769791333115,0.01099464,2740.2,2739.3,3.87]
[1769791333706,0.01099464,2740.2,2739.4,3.87]
[1769791333901,0.01299464,2740.5,2739.4,3.87]
[1769791333902,0.01099464,2740.3,2739.4,3.87]
[1769791334104,0.01299464,2740.5,2739.4,3.87]
[1769791334517,0.01099464,2740.3,2739.4,3.87]
[1769791334717,0.01099464,2739.8,2738.7,0.14]
[1769791335025,0.01099464,2740.2,2738.8,7.48651879]
[1769791335224,0.01299464,2740.5,2738.8,7.48651879]
[1769791335535,0.01299464,2740.5,2738.9,7.48651879]
[1769791336613,0.01099464,2740.1,2738.9,0.14]
[1769791336828,0.01099464,2739.9,2738.9,0.14]
[1769791337030,0.01099464,2739.9,2739.0,0.14]
[1769791337229,0.01099464,2739.7,2738.6,0.141]
[1769791337416,0.01099464,2740.1,2738.6,7.48751879]
[1769791337636,0.01099464,2740.0,2738.7,0.74875188]
[1769791337827,0.01099464,2739.8,2738.7,0.74875188]
[1769791338033,0.01099464,2740.0,2738.7,0.74875188]
[1769791338211,0.76925175,2740.1,2738.7,8.09527067]
[1769791338534,0.77599464,2740.3,2738.7,8.09527067]
[1769791338850,0.01099464,2740.1,2738.7,8.09527067]
[1769791339012,0.01099464,2739.9,2738.7,8.09527067]
[1769791339336,0.01099464,2740.1,2738.7,8.09527067]
[1769791339541,0.01099464,2739.9,2738.6,0.141]
[1769791339851,0.01099464,2739.3,2738.6,0.001]
[1769791340054,0.01099464,2739.1,2738.6,0.001]
[1769791340350,0.01099464,2739.3,2738.6,0.001]
[1769791340644,0.01099464,2739.1,2738.6,0.001]
[1769791340853,0.01099464,2738.9,2737.5,7.48651879]
[1769791341053,0.01099464,2739.1,2737.6,0.74865188]
[1769791341254,0.01099464,2738.9,2737.6,0.74865188]
[1769791341959,0.01099464,2738.9,2738.8,0.001]
[1769791342128,0.01099464,2738.9,2737.6,0.74865188]
[1769791342330,0.01099464,2738.9,2737.7,0.82351707]
[1769791343034,0.01099464,2738.7,2737.5,7.48651879]
[1769791343749,0.01099464,2738.9,2737.5,7.48651879]
[1769791344225,0.01099464,2738.5,2737.2,0.765]
[1769791344434,0.01099464,2738.3,2737.1,7.34651879]
[1769791344637,0.01099464,2738.3,2736.7,7.34751879]
[1769791344638,0.01099464,2738.1,2736.7,7.34751879]
[1769791344813,0.01099464,2738.1,2736.7,0.001]
[1769791344814,0.01099464,2737.9,2736.7,0.001]
[1769791345252,0.01099464,2738.1,2736.7,0.001]
[1769791345617,0.01099464,2737.9,2736.7,0.001]
[1769791345820,0.01099464,2737.9,2736.8,0.73475188]
[1769791346121,0.01099464,2738.1,2736.8,0.73475188]
[1769791346322,0.01099464,2738.3,2736.8,8.08127067]
[1769791346513,0.01099464,2738.5,2737.0,7.34651879]
[1769791347726,0.01099464,2738.3,2737.0,7.34651879]
[1769791347948,0.01099464,2738.5,2737.1,0.81115188]
[1769791348415,0.77599464,2738.9,2737.1,8.15767067]
[1769791348767,0.11339464,2739.1,2737.1,8.15767067]
[1769791348911,0.01099464,2738.9,2737.1,8.15767067]
[1769791349442,0.01099464,2739.2,2737.3,7.34651879]
[1769791349616,0.01099464,2739.1,2737.5,7.34651879]
[1769791349815,0.01099464,2739.1,2737.6,0.766]
[1769791349816,0.01099464,2738.9,2737.6,0.766]
[1769791350014,0.01099464,2739.4,2737.6,8.11251879]
[1769791350243,0.01099464,2739.5,2737.6,8.11251879]
[1769791350450,0.01099464,2739.7,2737.8,7.34651879]
[1769791350650,0.01099464,2739.5,2737.8,7.34651879]
[1769791351014,0.01099464,2739.7,2737.8,7.34651879]
[1769791351214,0.01099464,2739.5,2737.8,7.34651879]
[1769791351445,0.01099464,2739.5,2737.9,0.91310858]
[1769791351656,0.01099464,2739.5,2738.0,7.34651879]
[1769791351827,0.01099464,2739.7,2738.1,8.14309792]
[1769791352014,0.77699464,2739.9,2738.3,7.34651879]
[1769791352218,0.01099464,2739.7,2738.3,7.34651879]
[1769791352414,0.01099464,2739.3,2737.9,7.34651879]
[1769791352624,0.01099464,2739.3,2737.7,7.34651879]
[1769791352826,0.01099464,2739.5,2737.8,8.9943004]
[1769791353055,0.77699464,2739.7,2737.8,8.08117067]
[1769791353256,0.01099464,2739.2,2737.8,8.08117067]
[1769791353427,0.01099464,2739.4,2737.8,8.08117067]
[1769791353625,0.002,2738.8,2737.8,8.08117067]
[1769791353838,0.002,2738.8,2737.9,0.87307913]
[1769791354557,0.002,2738.8,2737.7,0.766]
[1769791356133,0.01099464,2738.7,2737.4,7.34651879]
[1769791356450,0.01099464,2738.6,2737.3,0.001]
[1769791356770,0.01099464,2737.8,2736.6,7.72907425]
[1769791357070,0.01099464,2737.6,2736.2,7.97524018]
[1769791357273,0.01099464,2737.0,2736.2,0.001]
[1769791357472,0.01099464,2737.4,2736.2,0.001]
[1769791357765,0.01099464,2737.6,2736.2,0.001]
[1769791357965,0.01099464,2737.2,2736.2,0.001]
[1769791358132,0.01099464,2737.0,2736.2,0.001]
[1769791358465,0.01099464,2737.4,2736.2,0.001]
[1769791358763,0.01099464,2737.2,2736.2,0.001]
[1769791359060,0.75182107,2737.4,2736.2,0.001]
[1769791359263,0.01099464,2737.2,2736.2,0.001]
[1769791359462,0.74082643,2737.4,2736.2,7.97524018]
[1769791359643,0.01099464,2737.8,2736.2,7.97524018]
[1769791359841,0.01099464,2737.6,2736.2,7.97524018]
[1769791360057,0.01099464,2737.5,2736.2,7.97524018]
[1769791360264,0.01099464,2737.8,2736.2,7.97524018]
[1769791360572,0.01099464,2738.4,2736.4,7.97424018]
[1769791360772,0.01099464,2738.4,2736.6,7.97424018]
[1769791361868,0.01099464,2738.4,2736.7,0.91350897]
[1769791362038,0.01099464,2738.6,2736.7,8.88774915]
[1769791362238,0.01099464,2738.4,2736.7,7.97424018]
[1769791362567,0.01099464,2738.2,2736.8,0.87370699]
[1769791362756,0.01099464,2738.2,2736.9,0.766]
[1769791363072,0.01099464,2738.4,2736.9,8.74024018]
[1769791364385,0.01099464,2738.7,2736.9,9.65366719]
[1769791364675,0.01099464,2738.5,2737.1,7.97424018]
[1769791364841,0.74102643,2738.7,2737.2,8.11424018]
[1769791365041,0.768,2738.8,2737.2,8.11424018]
[1769791365241,0.01099464,2738.7,2737.2,8.11424018]
[1769791365469,0.002,2738.8,2737.2,8.11424018]
[1769791365956,0.002,2738.8,2737.4,7.97424018]
[1769791366162,0.002,2738.8,2737.4,8.74024018]
[1769791366440,0.01299464,2738.5,2737.5,0.73370699]
[1769791366641,0.01299464,2738.5,2737.4,0.766]
[1769791368247,0.002,2738.5,2737.4,0.766]
[1769791369175,0.01099464,2738.4,2737.4,0.766]
[1769791369475,0.01099464,2738.2,2737.3,0.14]
[1769791369681,0.01099464,2738.4,2737.3,0.14]
[1769791370247,0.01099464,2738.4,2737.0,7.97424018]
[1769791370248,0.01099464,2738.4,2737.4,0.14]
[1769791370449,0.002,2738.5,2737.4,8.11424018]
[1769791370647,0.002,2738.5,2737.5,8.7856642]
[1769791370848,0.002,2739.0,2737.6,7.97424018]
[1769791371080,0.01099464,2739.4,2737.6,0.14]
[1769791371306,0.01099464,2739.7,2737.7,8.11424018]
[1769791371473,0.01099464,2739.5,2737.7,8.11424018]
[1769791371689,0.002,2739.8,2737.9,7.97424018]
[1769791371893,0.002,2739.8,2738.1,7.97424018]
[1769791372186,0.002,2740.7,2738.2,8.74024018]
[1769791372350,0.002,2740.7,2738.4,7.97424018]
[1769791372547,0.01099464,2740.4,2738.4,7.97424018]
[1769791372750,0.01099464,2740.4,2738.3,0.9129752]
[1769791372751,0.01099464,2740.6,2738.6,7.97424018]
[1769791373060,0.01099464,2740.4,2738.6,7.97424018]
[1769791374390,0.01099464,2740.1,2738.6,8.88711122]
[1769791374884,0.01099464,2740.4,2738.6,8.88711122]
[1769791375105,0.01099464,2740.2,2738.6,8.88711122]
[1769791375395,0.01099464,2740.2,2738.7,8.7856642]
[1769791375555,0.01099464,2740.1,2738.7,8.7856642]
[1769791375756,0.01099464,2739.9,2738.7,8.7856642]
[1769791376597,0.01099464,2740.1,2738.7,8.7856642]
[1769791376759,0.01099464,2740.1,2738.8,8.77054717]
[1769791376961,0.01099464,2740.4,2738.9,8.74024018]
[1769791378168,0.002,2740.5,2738.9,8.74024018]
[1769791378480,0.01099464,2740.4,2738.9,8.74024018]
[1769791379094,0.01099464,2740.2,2738.9,8.74024018]
[1769791379393,0.01099464,2740.4,2739.0,0.81142402]
[1769791379595,0.01099464,2740.2,2739.0,0.81142402]
[1769791380093,0.01299464,2740.0,2738.9,0.766]
[1769791380491,0.01099464,2739.8,2738.7,0.14]
[1769791380699,0.002,2740.0,2738.3,8.11424018]
[1769791380900,0.002,2740.0,2738.5,7.97424018]
[1769791381263,0.01099464,2739.9,2738.5,7.97424018]
[1769791381592,0.01099464,2739.7,2738.3,0.14]
[1769791382168,0.01099464,2739.9,2738.3,9.027215]
[1769791382471,0.002,2740.0,2738.5,8.88712471]
[1769791382685,0.002,2740.0,2738.7,7.97424018]
[1769791385304,0.002,2740.0,2738.6,0.765]
[1769791385305,0.01099464,2739.9,2738.6,0.765]
[1769791385603,0.01099464,2739.7,2738.6,0.765]
[1769791386094,0.01099464,2739.5,2738.6,0.765]
[1769791386330,0.01099464,2739.9,2738.6,0.765]
[1769791386605,0.002,2740.0,2738.6,8.25924538]
[1769791386766,0.002,2740.0,2738.7,0.82592454]
[1769791386967,0.01099464,2739.9,2738.6,0.765]
[1769791387202,0.01099464,2739.7,2738.6,0.765]
[1769791387879,0.002,2740.0,2738.7,0.14]
[1769791388080,0.01099464,2739.9,2738.7,0.14]
[1769791388379,0.002,2740.0,2738.7,0.14]
[1769791389108,0.01099464,2739.9,2738.7,0.14]
[1769791389275,0.01099464,2739.7,2738.7,0.14]
[1769791389472,0.01099464,2739.9,2738.7,0.14]
[1769791389816,0.002,2740.0,2738.7,0.14]
[1769791389984,0.01099464,2739.8,2738.7,0.14]
[1769791391185,0.002,2740.0,2738.7,7.63424538]
[1769791391390,0.002,2740.0,2738.8,0.83992454]
[1769791391920,0.01299464,2740.0,2738.8,0.83992454]
[1769791392590,0.002,2740.0,2738.8,0.84092454]
[1769791393123,0.01299464,2740.0,2738.8,0.84092454]
[1769791393310,0.01299464,2740.0,2738.8,0.001]
[1769791393708,0.01099464,2739.8,2738.9,0.14]
[1769791394027,0.01099464,2739.6,2738.9,0.14]
[1769791394231,0.01099464,2739.4,2737.9,7.49524538]
[1769791394540,0.01099464,2739.2,2737.9,8.39876992]
[1769791395039,0.78307118,2739.4,2737.9,8.39876992]
[1769791395403,0.77207654,2739.4,2737.9,9.31186865]
[1769791395729,0.765,2739.8,2737.9,9.31186865]
[1769791396025,0.01099464,2739.7,2737.9,9.31186865]
[1769791396337,0.01099464,2739.7,2737.9,8.39876992]
[1769791396501,0.01099464,2739.4,2737.9,0.141]
[1769791396841,0.01099464,2739.2,2737.9,0.141]
[1769791397128,0.01099464,2739.4,2737.9,0.141]
[1769791397331,0.01099464,2739.7,2737.9,7.63524538]
[1769791397546,0.01099464,2739.6,2737.9,7.63524538]
[1769791397741,0.01099464,2739.6,2738.0,8.3490818]
[1769791398062,0.01299464,2740.0,2738.0,8.3490818]
[1769791398344,0.01099464,2739.8,2738.0,8.3490818]
[1769791399529,7.70977078,2739.6,2738.0,0.85483642]
[1769791399745,0.01099464,2739.4,2737.9,7.49524538]
[1769791400240,0.01099464,2739.8,2738.0,8.40731445]
[1769791400535,0.765,2739.7,2738.0,8.40731445]
[1769791401106,0.01299464,2740.0,2738.0,8.40731445]
[1769791401369,0.77799464,2740.0,2738.0,8.40731445]
[1769791402040,0.002,2740.0,2738.2,7.49424538]
[1769791402239,0.002,2740.0,2738.4,7.50524002]
[1769791403481,0.002,2740.2,2738.8,7.49424538]
[1769791403770,0.002,2740.5,2738.9,8.27024002]
[1769791404072,0.002,2740.5,2739.3,7.49424538]
[1769791404265,0.002,2740.5,2739.5,7.49424538]
[1769791404720,0.001,2739.8,2739.5,7.49424538]
[1769791405223,0.002,2740.7,2739.6,7.49424538]
[1769791405434,0.00037224,2741.1,2739.6,7.49424538]
[1769791405623,0.00037224,2741.1,2739.8,7.49424538]
[1769791405828,0.00037224,2741.1,2739.9,0.765]
[1769791408353,0.01099464,2741.0,2739.9,0.765]
[1769791410558,0.00037224,2741.1,2739.9,8.25924538]
[1769791410923,0.00037224,2741.1,2740.0,0.14]
[1769791411150,0.00037224,2741.1,2740.0,0.97992454]
[1769791412419,0.00037224,2741.1,2740.1,7.49424538]
[1769791412865,0.00037224,2741.1,2740.2,7.63424538]
[1769791413072,0.00037224,2741.1,2740.3,7.63424538]
[1769791413562,0.00037224,2741.1,2740.3,0.14]
[1769791414638,0.00037224,2741.1,2740.3,8.00038635]
[1769791414835,0.00037224,2741.1,2740.3,7.86038635]
[1769791416040,0.00037224,2741.1,2740.4,0.765]
[1769791416478,0.00037224,2741.1,2740.2,0.14]
[1769791416857,0.00037224,2741.1,2739.8,0.765]
[1769791417058,0.002,2740.9,2739.5,8.02343172]
[1769791417288,0.002,2740.9,2739.4,0.14]
[1769791417486,0.002,2740.9,2739.4,9.07601669]
[1769791417675,0.002,2740.9,2739.6,8.93597205]
[1769791418050,0.002,2740.9,2739.6,8.02343172]
[1769791418258,0.002,2740.9,2739.7,0.80234317]
[1769791418472,0.002,2740.9,2739.4,0.14]
[1769791418876,0.002,2740.9,2739.4,8.16343172]
[1769791419476,0.002,2740.9,2739.4,8.02343172]
[1769791422477,0.002,2740.9,2739.4,8.93603726]
[1769791422681,0.002,2740.9,2739.4,8.9470319]
[1769791422991,0.002,2740.9,2739.5,8.93598829]
[1769791423479,0.002,2741.3,2739.5,8.93598829]
[1769791423480,0.002,2741.3,2740.4,8.02343172]
[1769791423681,0.002,2741.3,2740.5,0.765]
[1769791423882,0.002,2741.3,2740.5,8.78843172]
[1769791424252,0.002,2741.6,2740.6,8.02343172]
[1769791424454,0.002,2742.2,2740.8,8.02343172]
[1769791424784,0.002,2742.4,2741.3,8.02343172]
[1769791424983,0.002,2742.4,2741.4,8.78843172]
[1769791425848,8.01565009,2743.7,2741.5,8.03442636]
[1769791426052,8.78065009,2743.7,2741.5,8.03442636]
[1769791426253,0.01099464,2743.6,2741.5,8.03442636]
[1769791426463,0.92222948,2743.6,2741.5,8.02343172]
[1769791426664,8.78065009,2743.7,2741.6,8.75231956]
[1769791426870,9.69182891,2743.7,2741.6,8.75231956]
[1769791427266,0.01099464,2743.6,2741.6,8.75231956]
[1769791429093,8.01565009,2743.4,2741.6,8.75231956]
[1769791429292,8.01565009,2743.0,2741.1,0.065092]
[1769791429583,0.765,2743.2,2741.3,8.02343172]
[1769791430295,0.765,2743.2,2741.6,8.02343172]
[1769791430296,0.002,2742.4,2741.6,8.02343172]
[1769791430589,0.002,2742.4,2741.8,8.02343172]
[1769791430794,0.002,2742.4,2741.9,0.87884317]
[1769791432016,0.002,2742.4,2741.7,0.765]
[1769791432599,0.002,2742.4,2741.1,8.08852372]
[1769791432805,0.002,2742.4,2741.3,0.765]
[1769791434575,0.002,2742.4,2741.3,8.78843172]
[1769791435803,0.002,2742.4,2741.3,9.70039212]
[1769791436008,0.002,2742.4,2741.5,8.02343172]
[1769791436774,0.002,2742.4,2741.4,0.14]
[1769791437098,0.002,2742.4,2741.4,8.16343172]
[1769791437790,0.002,2742.4,2741.4,0.14]
[1769791439611,0.002,2742.4,2741.4,8.16343172]
[1769791439799,0.002,2742.4,2741.5,0.89284317]
[1769791439996,0.002,2742.4,2741.4,0.14]
[1769791440184,0.002,2742.4,2741.3,0.765]
[1769791440506,8.01765009,2742.4,2741.2,0.14]
[1769791441324,0.002,2742.4,2741.3,0.765]
[1769791441508,0.002,2742.4,2741.3,8.78843172]
[1769791441707,0.002,2742.4,2741.4,0.87884317]
[1769791442322,0.002,2742.4,2741.6,0.001]
[1769791444901,8.01765009,2742.4,2741.1,0.065092]
[1769791445101,0.002,2742.4,2741.1,0.065092]
[1769791445704,0.002,2742.4,2741.1,8.08852372]
[1769791445916,0.002,2742.4,2741.1,0.065092]
[1769791446111,0.80396501,2742.4,2741.1,0.065092]
[1769791446415,8.28771244,2742.4,2741.1,0.065092]
[1769791446993,7.48374743,2742.2,2741.1,0.065092]
[1769791447216,0.80396501,2742.4,2741.1,0.065092]
[1769791449219,1.51447421,2742.1,2741.1,0.065092]
[1769791450017,0.80396501,2742.4,2741.1,0.065092]
[1769791450231,0.765,2742.3,2741.1,0.065092]
[1769791450523,1.56896501,2742.4,2741.1,0.065092]
[1769791450692,0.002,2742.4,2741.2,7.76881103]
[1769791451741,0.002,2742.4,2741.1,0.065092]
[1769791451914,8.24874743,2742.3,2741.1,0.065092]
[1769791452128,0.01099464,2742.2,2741.1,0.065092]
[1769791452449,7.48374743,2741.9,2739.9,7.76881103]
[1769791452606,7.48374743,2741.7,2739.9,7.76881103]
[1769791453248,7.48374743,2741.7,2739.6,0.765]
[1769791453403,7.48374743,2741.5,2739.6,0.765]
[1769791453608,8.24874743,2741.4,2739.6,0.765]
[1769791454228,1.6612984,2741.8,2739.6,8.53381103]
[1769791454427,0.91450458,2741.7,2740.0,7.76881103]
[1769791454726,0.91450458,2741.7,2740.2,7.76881103]
[1769791455030,0.002,2742.2,2740.2,7.76881103]
[1769791455248,0.002,2742.2,2740.6,7.76881103]
[1769791455446,0.002,2742.2,2740.6,8.53381103]
[1769791455769,0.002,2742.2,2740.6,9.44599151]
[1769791456428,0.002,2742.2,2740.6,8.53381103]
[1769791456629,0.002,2742.2,2740.7,0.75434991]
[1769791457261,0.002,2742.2,2740.6,0.765]
[1769791458130,0.002,2742.2,2740.6,8.53381103]
[1769791458526,0.002,2742.2,2740.6,9.44601612]
[1769791458726,0.002,2742.2,2740.8,7.76881103]
[1769791459460,0.002,2742.2,2740.6,0.765]
[1769791459635,0.002,2742.2,2740.6,9.44601236]
[1769791459636,0.82727474,2742.2,2740.6,9.44601236]
[1769791459836,0.002,2742.2,2740.6,8.53381103]
[1769791460570,0.002,2742.2,2740.6,9.44601635]
[1769791460757,0.002,2742.2,2740.6,8.53381103]
[1769791461466,0.002,2742.2,2740.6,9.44601354]
[1769791461848,0.002,2742.2,2740.6,8.53381103]
[1769791462045,0.002,2742.2,2740.7,0.8533811]
[1769791462486,0.002,2742.2,2740.7,8.62219213]
[1769791464258,0.002,2742.2,2740.7,9.53435474]
[1769791464851,0.002,2742.2,2740.7,8.62219213]
[1769791465304,0.002,2742.2,2740.7,9.54533843]
[1769791465575,0.002,2742.2,2740.9,7.77980567]
[1769791465947,0.002,2742.2,2740.9,8.69190274]
[1769791466572,0.002,2742.2,2741.1,7.76881103]
[1769791466775,0.002,2742.2,2741.2,8.67381103]
[1769791467071,0.002,2742.0,2741.2,8.67381103]
[1769791467276,0.002,2742.0,2741.3,8.62219213]
[1769791469674,0.002,2742.0,2741.3,0.8533811]
[1769791469880,0.002,2742.0,2741.2,0.765]
[1769791470512,0.002,2742.0,2741.2,8.53381103]
[1769791470790,0.002,2742.0,2741.2,9.44581913]
[1769791471288,0.002,2742.2,2741.2,9.44581913]
[1769791471680,0.002,2742.6,2741.6,7.76881103]
[1769791471881,0.002,2742.6,2741.8,7.76881103]
[1769791472616,0.002,2742.6,2741.8,8.68060286]
[1769791473912,0.002,2742.9,2741.9,7.90881103]
[1769791474326,0.002,2743.3,2742.2,7.76881103]
[1769791474500,0.002,2743.3,2742.3,9.36466094]
[1769791475523,0.002,2743.3,2742.3,1.59584991]
[1769791475697,7.48574743,2743.3,2742.3,0.765]
[1769791475902,0.01099464,2743.2,2742.3,0.765]
[1769791476224,0.01099464,2742.6,2741.1,7.76881103]
[1769791476408,0.01099464,2742.6,2740.8,0.001]
[1769791476409,0.01099464,2742.1,2740.8,0.001]
[1769791476629,7.51994311,2741.7,2740.8,0.001]
[1769791476841,0.01099464,2741.3,2739.9,0.765]
[1769791477440,0.01099464,2741.1,2739.5,0.765]
[1769791477616,0.01099464,2741.3,2739.5,9.53476071]
[1769791477808,0.01099464,2741.3,2739.5,8.62219289]
[1769791478536,0.01099464,2741.5,2739.5,9.53476392]
[1769791478742,8.7909292,2741.9,2739.7,7.85719289]
[1769791478743,7.86813576,2741.9,2739.7,7.85719289]
[1769791478917,0.01099464,2742.1,2739.7,7.85719289]
[1769791478918,8.6441304,2741.8,2739.7,7.85719289]
[1769791479120,7.8791304,2741.6,2739.7,7.85719289]
[1769791480233,7.86813576,2741.6,2739.7,7.85719289]
[1769791480429,0.78681358,2741.5,2739.8,0.78571929]
[1769791481443,1.55181358,2741.5,2739.8,8.64291218]
[1769791481616,0.78681358,2741.5,2739.8,9.55538232]
[1769791481820,0.765,2741.6,2739.8,8.64291218]
[1769791482337,7.86813576,2741.4,2739.8,0.78571929]
[1769791482540,7.86813576,2741.4,2739.5,9.53476217]
[1769791482726,7.86813576,2741.4,2739.5,8.62219289]
[1769791482908,7.86813576,2741.0,2739.1,7.85719289]
[1769791483108,0.01099464,2740.7,2739.1,7.85719289]
[1769791483309,0.78791304,2740.9,2739.1,11.50799934]
[1769791483536,8.63313576,2741.0,2739.0,0.765]
[1769791483723,0.01099464,2740.9,2739.0,0.765]
[1769791483930,0.01099464,2740.7,2739.0,0.765]
[1769791484312,0.01099464,2740.7,2739.0,1.67774147]
[1769791484513,7.8791304,2740.9,2739.0,9.53493436]
[1769791484715,0.86441304,2740.8,2739.1,8.81068633]
[1769791485111,0.765,2741.0,2739.1,8.81068633]
[1769791485414,7.8791304,2740.9,2739.1,8.81068633]
[1769791485722,7.8791304,2740.7,2739.0,0.765]
[1769791485927,0.01099464,2740.3,2739.0,0.765]
[1769791486242,0.765,2740.8,2739.0,9.53493295]
[1769791486428,7.86813576,2740.6,2738.6,0.91287175]
[1769791486756,3.64831333,2741.0,2738.6,8.77006464]
[1769791486757,7.86813576,2741.0,2738.6,8.77006464]
[1769791487049,0.765,2740.6,2738.8,7.85719289]
[1769791487426,1.55291304,2740.9,2738.8,7.85719289]
[1769791488659,0.78791304,2740.9,2739.2,7.85719289]
[1769791488816,0.78791304,2740.9,2739.3,8.76219289]
[1769791490764,0.79890768,2740.9,2739.3,8.76219289]
[1769791490923,0.94320434,2740.8,2739.3,8.76219289]
[1769791491127,0.94320434,2740.8,2739.3,9.67482975]
[1769791491356,0.765,2740.7,2739.3,9.67482975]
[1769791492860,7.8791304,2740.6,2739.3,0.14]
[1769791493166,7.86813576,2740.6,2739.3,0.14]
[1769791493330,0.86331358,2740.5,2739.4,0.14]
[1769791493525,0.765,2740.7,2739.4,0.14]
[1769791493729,7.86813576,2741.0,2739.4,0.14]
[1769791494029,0.765,2740.6,2739.4,0.14]
[1769791494932,8.63313576,2740.6,2739.4,0.14]
[1769791495128,8.73144934,2740.5,2739.1,0.14]
[1769791495838,7.86813576,2740.3,2739.0,0.141]
[1769791496037,7.86813576,2740.1,2739.0,0.001]
[1769791496346,0.765,2740.0,2739.0,0.001]
[1769791496528,0.86331358,2739.9,2739.0,0.001]
[1769791496758,8.73144934,2739.9,2739.0,0.001]
[1769791496998,0.86331358,2739.9,2739.0,0.001]
[1769791497202,0.765,2739.8,2739.0,0.001]
[1769791497894,0.765,2739.9,2739.0,0.001]
[1769791498062,0.765,2740.0,2739.0,0.001]
[1769791498472,0.86331358,2740.5,2739.0,7.85819289]
[1769791498700,0.765,2740.2,2739.0,7.85819289]
[1769791498889,0.765,2740.2,2739.1,0.78581929]
[1769791499695,8.63313576,2740.2,2739.0,0.001]
[1769791499896,0.765,2740.2,2739.0,0.001]
[1769791500681,0.86331358,2740.5,2739.0,0.001]
[1769791501000,8.63313576,2740.4,2739.0,0.001]
[1769791501376,0.765,2740.3,2739.0,7.85819289]
[1769791501702,8.63313576,2740.3,2739.1,0.78581929]
[1769791502003,8.63313576,2740.3,2739.0,0.001]
[1769791502004,7.86813576,2740.1,2739.0,0.001]
[1769791502708,7.86813576,2740.1,2738.3,3.65187093]
[1769791502709,7.86813576,2739.9,2738.3,1.05297085]
[1769791502929,0.77599464,2740.3,2738.2,8.62319289]
[1769791502930,7.8791304,2740.3,2738.7,0.91283253]
[1769791503203,0.765,2739.8,2738.4,0.14]
[1769791503429,0.765,2739.8,2738.2,0.001]
[1769791503430,0.01099464,2739.7,2738.2,0.001]
[1769791503624,8.7325488,2739.6,2738.2,0.001]
[1769791503918,7.86813576,2739.4,2738.2,0.001]
[1769791504069,0.86441304,2739.6,2738.2,7.85819289]
[1769791505914,8.7325488,2739.6,2738.2,0.001]
[1769791506114,7.8791304,2739.5,2738.2,0.001]
[1769791506316,8.06214346,2739.2,2737.9,0.001]
[1769791506522,8.06214346,2739.0,2737.9,0.001]
[1769791506743,8.06214346,2738.8,2737.9,0.001]
[1769791507019,8.06214346,2738.8,2737.2,0.765]
[1769791507190,0.80621435,2738.7,2737.2,8.96381974]
[1769791507392,0.765,2738.6,2737.2,8.96381974]
[1769791507599,8.82714346,2738.6,2736.8,0.9134509]
[1769791507798,8.0731381,2738.5,2736.7,7.28548015]
[1769791507998,8.0731381,2738.5,2736.4,3.65439855]
[1769791507999,8.0731381,2738.5,2736.8,8.19894363]
[1769791508200,0.88381381,2738.4,2736.8,8.10537451]
[1769791508420,0.88381381,2738.4,2736.4,8.05048015]
[1769791508421,8.06214346,2738.2,2736.4,8.05048015]
[1769791508639,0.88381381,2738.4,2736.6,8.19900763]
[1769791508800,0.765,2738.3,2736.6,8.19900086]
[1769791509002,0.88381381,2738.4,2736.8,7.28548015]
[1769791509003,0.765,2738.2,2736.8,7.28548015]
[1769791509336,0.88381381,2738.4,2736.9,8.19890409]
[1769791509535,0.765,2738.4,2737.1,7.28548015]
[1769791512615,0.765,2738.4,2736.2,7.28648015]
[1769791512616,6.30355331,2737.9,2736.2,7.28648015]
[1769791512931,0.01099464,2737.7,2735.9,7.28648015]
[1769791513100,0.765,2737.6,2736.0,8.01412817]
[1769791513720,0.01099464,2737.9,2736.0,8.9278644]
[1769791513920,0.01099464,2738.3,2736.2,7.28548015]
[1769791514129,0.766,2738.4,2736.2,7.29647479]
[1769791514334,0.766,2738.4,2736.5,7.28548015]
[1769791514632,0.766,2738.4,2736.7,7.28548015]
[1769791514821,0.766,2738.4,2736.8,8.05148015]
[1769791515410,0.766,2738.4,2736.8,8.96493527]
[1769791516431,0.766,2738.5,2736.8,8.96493527]
[1769791517206,0.766,2738.5,2736.8,8.05148015]
[1769791517405,0.01099464,2738.4,2736.8,7.28548015]
[1769791517913,0.01099464,2738.4,2736.4,7.28648015]
[1769791518117,8.0731381,2738.0,2736.4,0.001]
[1769791518323,0.01099464,2737.8,2736.4,0.001]